Cogmind - Beta 13 @@@ ROGUE MODE // 2024.04.02 @ 22:31:58 Player: Rizzen Result: Destroyed by as-57418 with Assembled Rifle Performance ------------- Evolutions (0) 0 Regions Visited (2) 400 Robots Destroyed (31) 155 Value Destroyed (345) 345 Prototype IDs (0) 0 Alien Tech Used (0) 0 Bonus (0) 0 TOTAL SCORE: 900 Bonus ------- None Cogmind --------- Core Integrity 0/250 Matter 267/300 Energy 124/125 System Corruption 5% Temperature Cool (1) Movement Core (50) Location -10/Mines Parts ------- > --- POWER (1) -------- Light Ion Engine > --- PROPULSION (2) --- (None) > --- UTILITY (2) ------ Visual Processing Unit Signal Interpreter > --- WEAPON (2) ------- (None) > --- INVENTORY (5) ---- Light Ion Engine Sensor Array Light Assault Rifle Grenade Launcher Peak State ------------ > --- POWER ------------ Light Ion Engine > --- PROPULSION ------- Wheel Wheel > --- UTILITY ---------- Heat Sink Improved Terrain Scanner > --- WEAPON ----------- Medium Laser Small Laser > --- INVENTORY -------- Aluminum Leg Aluminum Leg Wheel Wheel Light Assault Rifle [Rating: 9] Favorites ----------- Power Light Ion Engine Engine Light Ion Engine Propulsion Flight Unit Wheel Wheel Flight Unit Flight Unit Utility Signal Interpreter Device Improved Terrain Scanner Processor Signal Interpreter Protection Power Shielding Weapon Light Assault Rifle Energy Gun Medium Laser Ballistic Gun Light Assault Rifle Ballistic Cannon Light Cannon Launcher Grenade Launcher Build | -11 -10 -10 ------- Run | Yrd Mat Min Slots Evolved . | . . . Power . | . . . Propulsion . | . . . Utility . | . . . Weapon . | . . . Parts Attached 40 | 9 29 2 Power 7 | 1 6 . Engine 7 | 1 6 . Core . | . . . Reactor . | . . . Propulsion 16 | 2 13 1 Treads . | . . . Leg . | . . . Wheel 4 | 2 2 . Hover . | . . . Flight 12 | . 11 1 Utility 5 | 2 3 . Device 2 | 2 . . Storage . | . . . Processor 2 | . 2 . Hackware . | . . . Protection 1 | . 1 . Artifact . | . . . Weapon 12 | 4 7 1 Energy Gun 2 | 2 . . Energy Cannon . | . . . Ballistic Gun 6 | 2 4 . Ballistic Cannon 1 | . 1 . Launcher 3 | . 2 1 Special Weapon . | . . . Impact Weapon . | . . . Slashing Weapon . | . . . Piercing Weapon . | . . . Special Melee Weapon . | . . . Unidentified Prototypes . | . . . Parts Lost 9 | . 5 4 Power . | . . . Propulsion 7 | . 4 3 Utility 1 | . 1 . Weapon 1 | . . 1 Highest Loss Streak 4 | . 2 4 To Critical Strikes . | . . . Average Slot Usage (%) 98 | . 98 100 Engine 14 | . 14 14 Wheel 5 | . 6 . Flight 21 | . 21 28 Device 5 | . 5 . Processor 18 | . 18 28 Protection 3 | . 3 . Ballistic Gun 18 | . 18 11 Ballistic Cannon 8 | . 7 14 Naked Turns . | . . . Heaviest Build 9 | 8 9 9 Greatest Support 20 | 20 20 8 Greatest Overweight (x) 1 | . 1 1 Average Overweight (x) . | . . . Largest Inventory Capacity 5 | 5 5 5 Average Capacity 5 | 5 5 5 Most Carried 5 | 5 5 5 Average Carried 4 | 3 4 4 Final Capacity 5 | 5 5 5 Final Carried 5 | 5 5 4 Class Distribution -------------------- 82% | Scavenger-Mutant 17% | Mutant Dominant Class ---------------- Scavenger-Mutant | -10/Materials Scavenger-Mutant | -10/Mines Resources | -11 -10 -10 ----------- Run | Yrd Mat Min Matter Collected 910 | 290 605 15 Remotely . | . . . Salvage Created 691 | 180 464 47 Parts 66 | 14 50 2 Haulers Intercepted 2 | . 2 . Recyclers Shooed 5 | . 5 . Parts Field Recycled . | . . . Retrieved Matter . | . . . Parts Self-Destructed . | . . . Prevented . | . . . Kills | -11 -10 -10 ------- Run | Yrd Mat Min Combat Hostiles Destroyed 18 | 1 12 5 Guns 8 | 1 7 . Cannons 3 | . 3 . AOE 7 | . 2 5 Classes Destroyed 10 | 3 6 1 Worker 5 | 1 3 1 Builder 1 | . 1 . Tunneler 5 | 4 1 . Hauler 2 | . 2 . Recycler 1 | . 1 . Operator 1 | . 1 . Watcher 3 | . 3 . Swarmer 9 | . 9 . Grunt 4 | 1 3 . Assembled 5 | . . 5 Best Kill Streak 7 | 3 7 5 Combat Bots Only 5 | 1 3 5 Max Kills in Single Turn 4 | 1 2 4 Gunslinging . | . . . Exploded 4 | . 1 4 Melee . | . . . Uniques/NPCs Destroyed . | . . . Combat | -11 -10 -10 -------- Run | Yrd Mat Min Hostile Shots Fired 99 | 2 75 22 Missed 26 | 1 17 8 Damage Taken 816 | 11 537 268 Core 251 | 11 184 56 Absorbed by Shields . | . . . Regen/Repaired (Parts) 34 | . 34 . Core Remaining (%) 95 | 95 . . Volleys Fired 122 | 12 104 6 Largest 2 | 2 2 2 Hottest 90 | 90 70 65 Shots Fired 243 | 23 208 12 Gun 193 | 23 166 4 Cannon 46 | . 40 6 Launcher 4 | . 2 2 Special . | . . . Kinetic 208 | . 198 10 Thermal 31 | 23 8 . Explosive 4 | . 2 2 Electromagnetic . | . . . Robot Hit Streak 9 | 6 9 7 Robot Miss Streak 4 | 3 4 2 Penetration Max . | . . . Secondary Targets 2 | . 2 . Max Gunslinging Chain 1 | . 1 . Shots Hit Robots 138 | 14 117 7 Core Hits 60 | 7 42 11 Critical Kills . | . . . Critical Parts Destroyed . | . . . Critical Strikes 1 | . 1 . Blast 1 | . 1 . Melee Attacks . | . . . Impact . | . . . Slashing . | . . . Piercing . | . . . Sneak Attacks . | . . . Combat Hostiles . | . . . Follow-up Attacks . | . . . Damage Inflicted 1898 | 160 1431 307 Guns 985 | 160 797 28 Cannons 464 | . 416 48 Explosions 449 | . 218 231 Melee . | . . . Ramming . | . . . Kinetic 1252 | . 1176 76 Thermal 197 | 160 37 . Explosive 449 | . 218 231 Electromagnetic . | . . . Impact . | . . . Slashing . | . . . Piercing . | . . . Highest Corruption 5 | . . 5 Average Corruption 5 | . . 5 Corruption Purged . | . . . Corruption Blocked . | . . . Overload Shots . | . . . Overflow Damage . | . . . Projectiles . | . . . Explosions . | . . . Melee . | . . . Knockbacks 6 | . 4 2 Impact . | . . . Kinetic 6 | . 4 2 Secondary . | . . . Self-Inflicted Damage . | . . . Shots . | . . . Rammed . | . . . Targets Rammed . | . . . Kicked . | . . . Crushed . | . . . Highest Temperature 80 | 66 80 22 Average Temperature 16 | 33 15 11 Received Heat Transfer 72 | 6 66 . Siege Activations . | . . . Robots Corrupted . | . . . Combat Hostiles . | . . . Parts Fried . | . . . Impact Corruptions . | . . . Robots Melted . | . . . Combat Hostiles . | . . . Parts Melted 1 | . 1 . Heat Transferred 545 | 434 111 . Parts Sabotaged . | . . . Parts Stolen . | . . . Parts Stripped . | . . . Power Chain Reactions . | . . . Alert | -11 -10 -10 ------- Run | Yrd Mat Min Peak Influence 241 | 45 241 48 Initial 31 | . 29 31 Average 111 | 22 132 35 Maximum Alert Level 1 | . 1 . Low Security (%) 94 | 100 93 100 Level 1 5 | . 6 . Level 2 . | . . . Level 3 . | . . . Level 4 . | . . . Level 5 . | . . . High Security . | . . . Max Security . | . . . Squads Dispatched 2 | . 2 . Investigation 1 | . 1 . Extermination . | . . . Reinforcement 1 | . 1 . Assault . | . . . Garrison . | . . . Intercept . | . . . Searches Triggered . | . . . Construction Impeded . | . . . Haulers Reinforced . | . . . Active Scanning Responses . | . . . Cargo Convoy Interrupts . | . . . Stealth | -11 -10 -10 --------- Run | Yrd Mat Min Distress Signals 5 | . 5 . Communications Jammed . | . . . Distress Signals . | . . . Times Spotted 45 | 1 25 19 Peak Tracking Total 19 | 1 5 19 Tactical Retreats . | . . . Traps | -11 -10 -10 ------- Run | Yrd Mat Min Traps Triggered 1 | . 1 . Indirectly . | . . . Trap Hack Attempts . | . . . Triggered . | . . . Disarmed . | . . . Reprogrammed . | . . . Reused . | . . . Traps Extracted . | . . . Installed . | . . . Triggered . | . . . Machines | -11 -10 -10 ---------- Run | Yrd Mat Min Machines Disabled . | . . . Max in Single Turn . | . . . Machines Repaired . | . . . Machines Dismantled . | . . . Machines Sabotaged . | . . . Overloaded Fab Kills . | . . . Hacking | -11 -10 -10 --------- Run | Yrd Mat Min Machines Accessed 6 | . 6 . Terminals 4 | . 4 . Fabricators . | . . . Repair Stations 1 | . 1 . Recycling Units 1 | . 1 . Scanalyzers . | . . . Garrison Access . | . . . Total Hacks 26 | . 26 . Successful 17 | . 17 . Failed 9 | . 9 . Catastrophic 1 | . 1 . Database Lockouts . | . . . Manual . | . . . Terminals 19 | . 19 . Fabricators . | . . . Repair Stations 6 | . 6 . Recycling Units 1 | . 1 . Scanalyzers . | . . . Garrison Access . | . . . Terminal Hacks 11 | . 11 . Record 10 | . 10 . Alert Level 1 | . 1 . Fabricator Hacks . | . . . Repair Station Hacks 5 | . 5 . Scan Component 3 | . 3 . Repair 2 | . 2 . Recycling Unit Hacks 1 | . 1 . Report Inventory 1 | . 1 . Scanalyzer . | . . . Garrison Access Hacks . | . . . Unauthorized Hacks . | . . . Terminals . | . . . Fabricators . | . . . Repair Stations . | . . . Recycling Units . | . . . Scanalyzers . | . . . Garrison Access . | . . . Data Cores Recovered . | . . . Used . | . . . Hacking Detections 5 | . 5 . Full Trace Events 3 | . 3 . Feedback Events . | . . . Feedback Blocked . | . . . Robot Schematics Acquired . | . . . Robots Built . | . . . Authchips . | . . . Time . | . . . Total Robot Build Rating . | . . . Part Schematics Acquired . | . . . Parts Built . | . . . Authchips . | . . . Time . | . . . Total Part Build Rating . | . . . Parts Repaired 2 | . 2 . Time 52 | . 52 . Parts Recycled . | . . . Recycled Matter . | . . . Retrieved Matter . | . . . Retrieved Components . | . . . Parts Scanalyzed . | . . . Part Schematics Acquired . | . . . Parts Damaged . | . . . Bothacking | -11 -10 -10 ------------ Run | Yrd Mat Min Used RIF Installer . | . . . Robots Hacked . | . . . Non-combat . | . . . Combat . | . . . Robot Hacks Applied . | . . . Relay Couplers Released . | . . . Fabnet Peak Effective % . | . . . Robots Rewired . | . . . Allies Hacked . | . . . Hacks Repelled . | . . . Allies | -11 -10 -10 -------- Run | Yrd Mat Min Total Allies . | . . . Largest Group . | . . . Highest-Rated Group . | . . . Highest-Rated Ally . | . . . Total Orders . | . . . Ally Attacks . | . . . Total Damage . | . . . Kills . | . . . Allies Corrupted . | . . . Allies Melted . | . . . Intel | -11 -10 -10 ------- Run | Yrd Mat Min Robot Analysis Total . | . . . Derelict Logs Recovered 1 | . . 1 Drone Launches . | . . . Drone Recoveries . | . . . Exploration | -11 -10 -10 ------------- Run | Yrd Mat Min Turns Passed 1235 | 188 994 53 Spaces Moved 1618 | 169 1363 86 Core 25 | 24 . 1 Treads . | . . . Legs . | . . . Wheels 271 | 145 126 . Hover . | . . . Flight 1322 | . 1237 85 Fastest Speed 37 | 50 37 37 Average Speed 47 | 75 44 38 Slowest Speed 120 | 80 120 117 Overloaded Moves . | . . . Propulsion Burnouts . | . . . Robots Hopped 5 | . 5 . Cave-ins Triggered . | . . . Exploration Rate (%) 43 | 6 98 26 Regions Visited 2 Branch Regions 1 Pre-discovered Areas 2 | . . 2 Known Exits Taken 1 | . 1 . Unknown Exits Taken 1 | 1 . . Scrap Searched . | . . . Spaces Dug . | . . . Terrain Destroyed 21 | . 9 12 Melee . | . . . Projectile . | . . . AOE 21 | . 9 12 Terrain Rammed . | . . . Walls Destroyed . | . . . Machines Disabled . | . . . Actions | -11 -10 -10 --------- Run | Yrd Mat Min Total 1871 | 204 1572 95 Wait 40 | 1 39 . Move 1606 | 168 1352 86 Hop 5 | . 5 . Pick Up 34 | 12 22 . Fast Attach 8 | 2 6 . Attach 14 | 5 8 1 Detach . | . . . Swap 18 | 2 15 1 Drop 24 | 2 21 1 Fire 122 | 12 104 6 Melee . | . . . Ram . | . . . Kick . | . . . Crush . | . . . Escape Stasis . | . . . Rewire . | . . . Trap . | . . . Miscellaneous . | . . . Route ------- -11/Scrapyard -10/Materials (discovered 5 exits: *Mat x3 / *Min x2) -10/Mines (discovered 1 exit: *Mat) History --------- Turn | Location | Event 2 | -11/Scrapyard | Met Revision 17 70 | -11/Scrapyard | Discovered new exit (range 8) 189 | -11/Scrapyard | Entered Materials 435 | -10/Materials | Discovered new exit (range 16) 513 | -10/Materials | Build established: Scavenger-Mutant 550 | -10/Materials | Identified exit to Mines 634 | -10/Materials | Core integrity fell below 50% 872 | -10/Materials | Discovered new exit (range 11) 876 | -10/Materials | Identified exit to Materials 900 | -10/Materials | Discovered exit to Materials (range 17) 939 | -10/Materials | Repaired Flight Unit 965 | -10/Materials | Discovered exit to Materials (range 18) 1072 | -10/Materials | Discovered exit to Mines (range 11) 1130 | -10/Materials | Repaired Flight Unit 1183 | -10/Materials | Entered Mines 1188 | -10/Mines | Discovered exit to Materials (range 3) 1211 | -10/Mines | Learned location of Mines (-9) 1218 | -10/Mines | Assembled infested the area 1220 | -10/Mines | Learned location of Storage (-7) 1234 | -10/Mines | Core integrity fell below 20% 1236 | -10/Mines | Destroyed by as-57418 with Assembled Rifle Last Messages --------------- 01231_ Flight Unit destroyed. 01232_ HV Slug penetrates as-22372. 01232_ as-22372 destroyed. 01232_ HV Slug penetrates Wall. 01233_ Flight Unit destroyed. 01233_ System corrupted by crushing effect (+5). 01233_ Dropped Grenade Launcher. 01233_ Lgt. Cannon destroyed. 01234_ HV Slug penetrates Wall. 01234_ HV Slug penetrates Earth. 01235_ as-03997 powers down. 01235_ as-16533 powers down. 01235_ as-63536 powers down. 01235_ as-08963 powers down. 01235_ as-66860 powers down. 01235_ as-15902 powers down. 01236_ Flight Unit destroyed. 01236_ HV Slug penetrates as-63536. 01236_ HV Slug penetrates Wall. 01236_ Penetrated by HV Slug. Map ----- +----------------------------------------------------+ | | | | | | | | | | | | | | | | | | | | | | | ?????????????????????????????????? | | ?????????????????????????????????# | | ?????????????????????????????????# | | ?????????????#?#?????????????????# | | ??????????### ##????????????????# | | ??????????